bitfinex-derivatives/quotes_BTCF0:USTF0_20220103
["timestamp","ask_amount","ask_price","bid_price","bid_amount"]
[1641227398211,0.07985175,46400.0,46399.0,0.14064267]
[1641227398411,0.19954475,46400.0,46396.0,0.14033567]
[1641227398612,0.07985175,46400.0,46399.0,0.193]
[1641227398811,0.08085175,46400.0,46399.0,0.193307]
[1641227399212,0.05929,46400.0,46399.0,0.193]
[1641227399412,0.05829,46400.0,46399.0,0.193]
[1641227399613,0.05829,46400.0,46399.0,0.194]
[1641227399811,0.05829,46400.0,46396.0,0.14033567]
[1641227400015,0.07985311,46400.0,46399.0,0.000307]
[1641227400213,0.07985311,46400.0,46396.0,0.14033567]
[1641227400413,0.179693,46397.0,46396.0,0.14033567]
[1641227400612,0.179693,46397.0,46374.0,0.85211082]
[1641227400613,0.21105293,46397.0,46383.0,0.23440939]
[1641227400813,0.179693,46395.0,46382.0,0.14033567]
[1641227401016,0.001,46389.0,46382.0,0.14033567]
[1641227401215,0.18020017,46389.0,46388.0,0.000307]
[1641227401439,0.32153584,46389.0,46388.0,0.000307]
[1641227401633,0.32153584,46389.0,46376.0,2.07163567]
[1641227401833,0.0215696,46378.0,46372.0,0.14033567]
[1641227402033,0.1141196,46378.0,46377.0,0.001]
[1641227402234,0.1151196,46378.0,46377.0,0.001]
[1641227402437,0.1151196,46378.0,46377.0,0.000307]
[1641227402438,0.09255,46378.0,46377.0,0.000307]
[1641227402637,0.09255,46378.0,46373.0,0.000307]
[1641227402836,0.09255,46378.0,46377.0,0.000307]
[1641227403034,0.09355,46378.0,46377.0,0.000307]
[1641227403233,0.09255,46378.0,46377.0,0.180307]
[1641227403835,0.09255,46378.0,46377.0,0.000307]
[1641227404235,0.09255,46378.0,46372.0,0.25591608]
[1641227404435,0.26555,46378.0,46377.0,0.184]
[1641227404736,0.26555,46378.0,46377.0,0.185]
[1641227404935,0.26655,46378.0,46377.0,0.185]
[1641227405537,0.26555,46378.0,46377.0,0.185]
[1641227405738,0.09255,46378.0,46376.0,0.000307]
[1641227406037,0.14033567,46379.0,46377.0,0.001]
[1641227406336,0.14033567,46379.0,46376.0,0.000307]
[1641227406537,0.175,46378.0,46377.0,0.32362]
[1641227406738,0.175,46378.0,46376.0,0.175307]
[1641227406739,0.176,46378.0,46376.0,0.175]
[1641227406937,0.175,46378.0,46376.0,0.175]
[1641227407436,0.19656939,46378.0,46376.0,0.175]
[1641227407639,0.001,46377.0,46376.0,0.175]
[1641227407836,0.02257251,46377.0,46375.0,0.000307]
[1641227408037,0.179693,46376.0,46367.0,0.14033567]
[1641227408241,0.02257463,46377.0,46367.0,0.14033567]
[1641227408242,0.179693,46369.0,46367.0,0.14033567]
[1641227408438,0.247763,46369.0,46364.0,0.02]
[1641227408638,0.180693,46365.0,46357.0,1.21733015]
[1641227408839,0.179693,46362.0,46357.0,1.21733015]
[1641227409240,0.179693,46359.0,46358.0,0.6076038]
[1641227409440,0.52925434,46359.0,46358.0,0.6076038]
[1641227409841,0.53025434,46359.0,46358.0,0.6076038]
[1641227410243,0.35056134,46359.0,46358.0,0.6076038]
[1641227410442,0.35056134,46359.0,46356.0,0.85241782]
[1641227410443,0.73204834,46359.0,46356.0,0.85211082]
[1641227410645,0.55235534,46359.0,46357.0,0.000307]
[1641227410842,0.56444552,46359.0,46357.0,0.000307]
[1641227411043,0.001,46358.0,46357.0,0.000307]
[1641227411245,0.56444552,46359.0,46357.0,0.000307]
[1641227411246,0.55465152,46359.0,46357.0,0.000307]
[1641227411443,0.001,46358.0,46357.0,0.000307]
[1641227411743,1.14962216,46363.0,46357.0,0.2840179]
[1641227411942,1.14962216,46363.0,46362.0,0.001307]
[1641227412144,1.14962216,46363.0,46362.0,0.002307]
[1641227412343,1.14962216,46363.0,46362.0,0.001307]
[1641227412544,1.14962216,46363.0,46362.0,0.198307]
[1641227412747,1.14962216,46365.0,46362.0,0.198307]
[1641227412945,1.14962216,46365.0,46364.0,0.001]
[1641227413947,0.14033567,46368.0,46364.0,0.001]
[1641227414145,0.14033567,46368.0,46362.0,0.000307]
[1641227414446,0.14033567,46368.0,46366.0,0.000307]
[1641227414645,0.14033567,46368.0,46364.0,0.194]
[1641227414947,0.02157612,46365.0,46364.0,0.194]
[1641227415544,0.16191179,46365.0,46364.0,0.194]
[1641227415745,0.16191179,46365.0,46353.0,0.14033567]
[1641227415746,0.16191179,46365.0,46357.0,0.18]
[1641227416045,0.16191179,46365.0,46364.0,0.000307]
[1641227417546,0.34160479,46365.0,46357.0,0.194]
[1641227417748,0.179693,46358.0,46354.0,1.21733015]
[1641227417952,0.179693,46355.0,46354.0,3.015e-05]
[1641227418148,0.254007,46355.0,46345.0,0.57543238]
[1641227418349,0.179693,46347.0,46345.0,0.57543238]
[1641227419149,0.059,46349.0,46345.0,0.57673938]
[1641227419354,0.178693,46349.0,46345.0,0.61033168]
[1641227419549,0.28067134,46346.0,46345.0,0.60902468]
[1641227419950,0.28067134,46346.0,46345.0,0.61033168]
[1641227420351,0.28067134,46346.0,46345.0,0.60902468]
[1641227420552,0.46967134,46346.0,46345.0,0.60902468]
[1641227420749,0.46967134,46346.0,46343.0,0.60902468]
[1641227421551,0.64836434,46346.0,46343.0,0.60902468]
[1641227421752,0.28067134,46346.0,46345.0,0.001307]
[1641227421950,0.28067134,46346.0,46343.0,0.60902468]
[1641227422450,0.47467134,46346.0,46345.0,0.001307]
[1641227422650,0.47467134,46346.0,46343.0,0.60902468]
[1641227422951,0.47467134,46346.0,46345.0,0.001307]
[1641227423850,0.28067134,46346.0,46345.0,0.001307]
[1641227424249,0.28067134,46346.0,46345.0,0.181307]
[1641227424452,0.42367134,46346.0,46345.0,0.358307]
[1641227424653,0.42367134,46346.0,46345.0,0.178307]
[1641227425856,0.28067134,46346.0,46344.0,0.60902468]
[1641227426059,0.119693,46345.0,46344.0,0.60902468]
[1641227426353,0.14128268,46345.0,46342.0,0.85268323]
[1641227426554,0.059,46343.0,46342.0,0.85268323]
[1641227426954,0.059,46343.0,46336.0,0.85268323]
[1641227427153,0.02159195,46337.0,46336.0,0.85268323]
[1641227427356,0.02159351,46337.0,46327.0,1.46180496]
[1641227427554,0.14033567,46328.0,46327.0,1.46180496]
[1641227427755,0.22847258,46328.0,46327.0,1.46180496]
[1641227428153,0.40716558,46328.0,46327.0,1.46180496]
[1641227428357,0.40716738,46328.0,46317.0,0.001307]
[1641227428556,0.178693,46321.0,46315.0,1.9321]
[1641227428753,0.178693,46321.0,46314.0,4.36039019]
[1641227428754,0.178693,46321.0,46319.0,0.001307]
[1641227428953,0.178693,46321.0,46318.0,0.001307]
[1641227429154,0.188487,46321.0,46314.0,1.57611472]
[1641227429354,0.178693,46317.0,46314.0,1.57742172]
[1641227429558,0.28067134,46315.0,46314.0,1.57742172]
[1641227430160,0.28067134,46315.0,46314.0,0.001307]
[1641227430661,1.14936915,46320.0,46314.0,0.181307]
[1641227430861,1.14936915,46320.0,46319.0,0.18]
[1641227431058,1.14936915,46320.0,46319.0,0.001307]
[1641227431257,1.14936915,46320.0,46319.0,0.507003]
[1641227431458,0.02159287,46328.0,46319.0,0.64733867]
[1641227431658,0.14033567,46334.0,46327.0,0.001307]
[1641227431858,0.14033567,46334.0,46333.0,0.001307]
[1641227432258,0.16192548,46334.0,46333.0,0.001307]
[1641227432458,0.16192548,46334.0,46333.0,0.192307]
[1641227432861,0.16192548,46334.0,46333.0,0.191]
[1641227433362,0.16192836,46334.0,46333.0,0.191]
[1641227433759,0.14033567,46334.0,46333.0,0.191]
[1641227434358,0.16193082,46334.0,46333.0,0.191]
[1641227434558,0.34393082,46334.0,46333.0,0.17]
[1641227435360,0.34393082,46334.0,46333.0,0.171307]
[1641227435964,0.16193082,46334.0,46333.0,0.080537]
[1641227436562,0.16193082,46334.0,46333.0,0.270537]
[1641227437563,0.16193082,46334.0,46333.0,0.26923]
[1641227438063,0.34062382,46334.0,46333.0,0.07923]
[1641227438263,0.16193082,46334.0,46333.0,0.001307]
[1641227438466,0.16193082,46334.0,46333.0,0.190307]
[1641227438664,0.16193082,46334.0,46333.0,0.189]
[1641227439264,0.16193082,46334.0,46333.0,0.190307]
[1641227439663,0.16193082,46334.0,46333.0,0.189]
[1641227439664,0.02159515,46334.0,46333.0,0.189]
[1641227440065,0.02159515,46334.0,46333.0,0.190307]
[1641227440265,0.02159515,46334.0,46333.0,0.189]
[1641227440665,0.10259515,46334.0,46333.0,0.376]
[1641227440865,0.10259515,46334.0,46333.0,0.377307]
[1641227441266,0.10259515,46334.0,46333.0,0.377]
[1641227441665,0.10259515,46334.0,46333.0,0.376]
[1641227441866,0.02159515,46334.0,46332.0,0.14033567]
[1641227442067,0.02159515,46334.0,46332.0,0.14164267]
[1641227442684,1.4404777,46332.0,46313.0,0.02]
[1641227442884,0.02159808,46316.0,46313.0,0.02]
[1641227443085,0.11046808,46316.0,46313.0,0.02]
[1641227443784,0.08887,46316.0,46313.0,0.02]
[1641227443984,0.02159971,46314.0,46313.0,0.02]
[1641227444385,0.02159971,46314.0,46306.0,0.14033567]
[1641227444586,0.21259971,46314.0,46306.0,0.14033567]
[1641227445085,0.02160294,46309.0,46306.0,0.14033567]
[1641227445486,0.02160294,46309.0,46308.0,1.21290879]
[1641227446486,0.20560294,46309.0,46308.0,1.21290879]
[1641227446886,0.20560294,46309.0,46308.0,0.005]
[1641227447889,0.02160294,46309.0,46308.0,0.005]
[1641227448291,0.14033567,46315.0,46308.0,0.185]
[1641227448491,0.14033567,46321.0,46314.0,0.18]
[1641227448692,0.02159461,46324.0,46320.0,0.18]
[1641227448891,0.08637846,46333.0,46320.0,0.07913]
[1641227449089,0.02159501,46323.0,46320.0,0.25913]
[1641227449291,0.02159485,46323.0,46320.0,0.07913]
[1641227449989,0.02159485,46323.0,46319.0,0.18]
[1641227450494,0.18659485,46323.0,46319.0,0.18]
[1641227450694,0.18659485,46323.0,46322.0,0.06]
[1641227450893,0.18659485,46323.0,46322.0,0.18]
[1641227451296,0.14033567,46333.0,46318.0,0.54033567]
[1641227451492,0.14033567,46333.0,46321.0,0.15444598]
[1641227451693,0.14033567,46333.0,46332.0,0.18]
[1641227451894,1.5819117,46343.0,46332.0,0.25693]
[1641227452094,1.5819117,46343.0,46336.0,0.18]
[1641227452394,0.02158733,46340.0,46336.0,0.18]
[1641227452594,0.02158513,46345.0,46336.0,0.191]
[1641227452794,0.02158666,46342.0,46336.0,0.191]
[1641227453194,0.02158666,46342.0,46337.0,0.18]
[1641227453394,0.15012967,46346.0,46336.0,0.191]
[1641227453593,0.15012967,46346.0,46337.0,0.14033567]
[1641227453796,0.0215875,46340.0,46337.0,0.14033567]
[1641227454394,0.0215875,46340.0,46337.0,0.32033567]
[1641227454594,0.0215875,46340.0,46337.0,0.33033567]
[1641227454796,0.0215875,46340.0,46337.0,0.51033567]
[1641227454995,0.02158559,46344.0,46337.0,0.51033567]
[1641227455394,0.02158559,46344.0,46337.0,0.33133567]
[1641227455599,0.02158559,46344.0,46337.0,0.33033567]
[1641227455996,0.02158559,46344.0,46337.0,0.32133567]
[1641227456195,0.14033567,46346.0,46337.0,0.40007567]
[1641227456397,0.14033567,46346.0,46337.0,0.39907567]
[1641227456596,0.14033567,46346.0,46337.0,0.59307567]
[1641227456795,0.14033567,46346.0,46341.0,0.18]
[1641227456996,0.14033567,46346.0,46338.0,0.18]
[1641227457198,0.14033567,46346.0,46338.0,0.12]
[1641227458100,0.14033567,46346.0,46337.0,0.14033567]
[1641227458498,0.14033567,46346.0,46340.0,0.18]
[1641227459898,0.15012967,46346.0,46337.0,0.14033567]
[1641227460797,0.02158537,46344.0,46338.0,0.18]
[1641227461798,0.02158537,46344.0,46337.0,0.33033567]
[1641227461999,0.02158537,46344.0,46337.0,0.14033567]
[1641227462699,0.02158537,46344.0,46337.0,0.33333567]
[1641227464201,0.02158537,46344.0,46337.0,0.14033567]
[1641227464599,0.02158537,46344.0,46337.0,0.33333567]
[1641227465000,0.02158672,46341.0,46337.0,0.33333567]
[1641227465200,0.18,46341.0,46337.0,0.33333567]
[1641227465400,0.02158958,46338.0,46337.0,0.33333567]
[1641227465802,0.03369303,46338.0,46337.0,0.33333567]
[1641227466002,0.03369303,46338.0,46337.0,0.14033567]
[1641227466202,0.01210345,46338.0,46337.0,0.14033567]
[1641227466704,0.01210345,46338.0,46337.0,0.32933567]
[1641227466903,0.01102865,46338.0,46337.0,0.32933567]
[1641227467303,0.00547341,46338.0,46337.0,0.32933567]
[1641227467707,0.07525105,46338.0,46337.0,0.32933567]
[1641227467904,0.09684084,46338.0,46337.0,0.14033567]
[1641227468303,0.11024788,46338.0,46329.0,0.18]
[1641227468505,0.11024788,46338.0,46328.0,0.14033567]
[1641227468704,0.27848979,46338.0,46337.0,0.178]
[1641227469707,0.39723567,46338.0,46337.0,0.178]
[1641227469909,0.39723567,46338.0,46328.0,0.14033567]
[1641227470107,0.21518963,46338.0,46328.0,0.14033567]
[1641227470308,0.21518963,46338.0,46337.0,0.18]
[1641227470710,0.21423567,46338.0,46337.0,0.18]
[1641227471109,0.21423567,46338.0,46332.0,0.06313]
[1641227471508,0.21423567,46338.0,46334.0,0.18]
[1641227471710,0.0739,46338.0,46337.0,0.001]
[1641227471910,0.009794,46345.0,46337.0,0.001]
[1641227472110,0.009794,46345.0,46335.0,0.500876]
[1641227472309,0.009794,46345.0,46335.0,0.320876]
[1641227472509,0.009794,46345.0,46333.0,0.14033567]
[1641227472510,0.02158593,46343.0,46333.0,0.14033567]
[1641227472711,0.02158593,46343.0,46335.0,0.188]
[1641227474209,0.20158593,46343.0,46333.0,0.14033567]
[1641227474609,0.20158593,46343.0,46335.0,0.19]
[1641227475210,0.18,46342.0,46335.0,0.19]
[1641227475412,0.0215877,46339.0,46335.0,0.19]
[1641227475609,0.009794,46345.0,46335.0,0.19]
[1641227475610,0.02158617,46343.0,46335.0,0.19]
[1641227476010,0.02158617,46343.0,46333.0,0.14033567]
[1641227476211,0.02158822,46338.0,46333.0,0.14033567]
[1641227476610,0.02158822,46338.0,46333.0,0.33233567]
[1641227477512,0.02158822,46338.0,46333.0,0.51233567]
[1641227477912,0.02158822,46338.0,46333.0,0.32033567]
[1641227478113,0.02158676,46341.0,46333.0,0.32033567]
[1641227478715,0.02158676,46341.0,46333.0,0.51233567]
[1641227479915,0.02158676,46341.0,46333.0,0.32033567]
[1641227480515,0.02158676,46341.0,46339.0,0.18]
[1641227480719,0.02158543,46344.0,46340.0,0.001]
[1641227480916,0.02158312,46349.0,46340.0,0.20546]
[1641227481219,0.02158312,46349.0,46345.0,0.12]
[1641227481419,0.14033567,46353.0,46348.0,0.18]
[1641227481815,0.02158102,46354.0,46348.0,0.18]
[1641227482215,1.5917057,46358.0,46348.0,0.18]
[1641227482416,1.60349074,46358.0,46351.0,0.001]
[1641227482615,1.60349074,46358.0,46351.0,0.09169]
[1641227482616,0.02157904,46358.0,46351.0,0.09169]
[1641227483016,0.02157704,46362.0,46354.0,0.18]
[1641227483419,1.6146117,46363.0,46354.0,0.18]
[1641227483918,0.0327,46363.0,46362.0,0.001]
[1641227484118,0.0327,46363.0,46361.0,0.07568]
[1641227484317,0.0215755,46366.0,46361.0,0.07568]
[1641227484520,0.6453518,46368.0,46361.0,0.25568]
[1641227484717,0.6453518,46368.0,46361.0,0.23468]
[1641227484917,0.6453518,46368.0,46364.0,0.18]
[1641227485122,0.02157357,46370.0,46365.0,0.18]
[1641227485317,0.02157357,46370.0,46365.0,0.09252695]
[1641227485520,1.5819117,46373.0,46365.0,0.09252695]
[1641227485718,1.5819117,46373.0,46372.0,0.14033567]
[1641227485922,0.73282485,46377.0,46372.0,0.20817567]
[1641227486221,1.63535112,46377.0,46372.0,0.20817567]
[1641227486619,0.08747305,46376.0,46372.0,0.39217567]
[1641227487028,0.08747305,46376.0,46375.0,0.001]
[1641227487220,0.08747305,46376.0,46372.0,0.39217567]
[1641227488020,0.08747305,46376.0,46373.0,0.09252695]
[1641227488622,0.08747305,46376.0,46373.0,0.27652695]
[1641227488820,0.08747305,46376.0,46375.0,0.001]
[1641227489222,0.08747305,46376.0,46373.0,0.184]
[1641227489421,0.08747305,46376.0,46374.0,0.09252695]
[1641227489623,0.08747305,46376.0,46375.0,0.001]
[1641227490022,0.08747305,46376.0,46375.0,0.326572]
[1641227490224,0.08747305,46388.0,46374.0,0.41804495]
[1641227490429,0.08747305,46392.0,46386.0,0.09252695]
[1641227490724,0.75307368,46397.0,46388.0,0.09252695]
[1641227491126,1.64055884,46389.0,46387.0,0.02155718]
[1641227491332,1.64055884,46389.0,46388.0,0.52934223]
[1641227491534,0.08747305,46396.0,46388.0,0.20495923]
[1641227491734,0.08747305,46396.0,46395.0,0.14033567]
[1641227492335,0.28903464,46396.0,46395.0,0.14033567]
[1641227492737,0.28903464,46396.0,46395.0,0.31733567]
[1641227492935,0.10903464,46396.0,46395.0,0.31733567]
[1641227493137,0.28903464,46396.0,46395.0,0.31733567]
[1641227493537,0.10903464,46396.0,46395.0,0.31733567]
[1641227493836,0.28903464,46396.0,46395.0,0.31733567]
[1641227494036,0.28903464,46396.0,46395.0,0.14033567]
[1641227494236,0.10903464,46396.0,46395.0,0.14033567]
[1641227494740,0.28903464,46396.0,46395.0,0.29533567]
[1641227495438,0.04848389,46390.0,46384.0,0.09252695]
[1641227495737,0.08747305,46386.0,46382.0,0.31260283]
[1641227495941,0.18,46384.0,46375.0,0.60851307]
[1641227496238,0.08747305,46377.0,46376.0,0.60851307]
[1641227496438,0.15854305,46377.0,46376.0,0.60851307]
[1641227496839,0.33554305,46377.0,46376.0,0.64951307]
[1641227497439,0.24807,46377.0,46376.0,0.74204002]
[1641227497639,0.177,46377.0,46376.0,0.364549]
[1641227498039,0.08747305,46378.0,46376.0,0.323549]
[1641227498239,0.14033567,46379.0,46376.0,0.323549]
[1641227498638,0.14033567,46379.0,46376.0,0.167]
[1641227498837,0.188,46378.0,46377.0,0.325114]
[1641227499438,0.188,46378.0,46376.0,0.167]
[1641227500039,0.14033567,46379.0,46376.0,0.167]
[1641227500245,0.04848389,46390.0,46376.0,0.167]
[1641227500246,0.04848389,46390.0,46381.0,0.22453136]
[1641227500438,0.04848389,46390.0,46385.0,0.09252695]
[1641227500639,0.04848389,46390.0,46381.0,0.29912136]
[1641227500640,0.08747305,46386.0,46382.0,0.324697]
[1641227500840,0.04848389,46390.0,46382.0,0.09252695]
[1641227501042,0.04848389,46390.0,46383.0,0.09252695]
[1641227501342,0.04848389,46390.0,46383.0,0.41555095]
[1641227501640,0.04848389,46390.0,46383.0,0.09252695]
[1641227501840,0.08747305,46387.0,46383.0,0.09252695]
[1641227502042,0.04848389,46390.0,46386.0,0.14033567]
[1641227502341,0.04848389,46390.0,46387.0,0.322386]
[1641227504340,0.04848389,46390.0,46386.0,0.14033567]
[1641227504745,0.04848389,46390.0,46387.0,0.191]
[1641227505244,0.08747305,46388.0,46387.0,0.191]
[1641227506044,0.08747305,46388.0,46386.0,0.14033567]
[1641227506645,0.26747305,46388.0,46378.0,0.60851307]
[1641227506843,0.18,46388.0,46386.0,0.191]
[1641227507044,0.08747305,46387.0,46386.0,0.191]
[1641227508246,0.08747305,46387.0,46377.0,0.14033567]
[1641227508647,0.08747305,46378.0,46377.0,0.14033567]
[1641227508847,0.06433,46385.0,46377.0,0.33333567]
[1641227509046,0.08747305,46382.0,46377.0,0.33233567]
[1641227509248,0.08747305,46382.0,46381.0,0.001]
[1641227510549,0.08747305,46382.0,46381.0,0.319311]
[1641227510748,0.14033567,46388.0,46382.0,0.15157138]
[1641227510947,0.14033567,46388.0,46382.0,0.06638]
[1641227511150,0.04848389,46390.0,46383.0,0.32161]
[1641227511752,0.04848389,46390.0,46385.0,0.12]
[1641227512151,0.04848389,46390.0,46386.0,0.34365699]
[1641227512552,0.04848389,46390.0,46389.0,0.001]
[1641227512953,0.04848389,46390.0,46389.0,0.324106]
[1641227513152,0.04848389,46390.0,46389.0,0.323106]
[1641227513552,0.04848389,46390.0,46387.0,0.32413]
[1641227513954,0.04848389,46390.0,46389.0,0.324722]
[1641227514155,0.04848389,46390.0,46389.0,0.14033567]
[1641227514555,0.04848389,46390.0,46389.0,0.46442967]
[1641227514756,0.04848389,46390.0,46389.0,0.65742967]
[1641227514956,0.0001,46400.0,46389.0,0.65742967]
[1641227515155,0.0001,46400.0,46389.0,0.65642967]
[1641227515758,0.0001,46400.0,46394.0,0.001]
[1641227515959,0.0001,46400.0,46389.0,0.65642967]
[1641227516157,0.0001,46400.0,46395.0,0.324787]
[1641227516356,0.0001,46400.0,46392.0,0.21297544]
[1641227516861,0.0001,46400.0,46395.0,0.187]
[1641227517064,0.0001,46400.0,46399.0,0.001]
[1641227517562,0.0001,46400.0,46399.0,0.003887]
[1641227518563,0.0001,46400.0,46399.0,0.004887]
[1641227518862,0.0001,46400.0,46399.0,0.194887]
[1641227519263,0.0001,46400.0,46399.0,0.193887]
[1641227519764,0.0001,46400.0,46399.0,0.194887]
[1641227519963,0.0001,46400.0,46399.0,0.191]
[1641227520165,0.0001,46400.0,46398.0,0.28067134]
[1641227520764,0.0001,46400.0,46398.0,0.47567134]
[1641227520965,0.0001,46400.0,46399.0,0.324428]
[1641227521367,0.0001,46400.0,46398.0,0.47567134]
[1641227522164,0.0001,46400.0,46398.0,0.28067134]
[1641227522763,0.0001,46400.0,46398.0,0.47167134]
[1641227523465,0.0001,46400.0,46399.0,0.67397816]
[1641227523866,0.0001,46400.0,46399.0,0.67297816]
[1641227524067,0.0001,46400.0,46399.0,0.67397816]
[1641227524969,0.0001,46400.0,46399.0,0.86397816]
[1641227525368,0.0001,46400.0,46399.0,0.86297816]
[1641227525969,0.0001,46400.0,46399.0,1.04297816]
[1641227526170,0.14043567,46410.0,46403.0,0.3537014]
[1641227526370,0.14043567,46410.0,46403.0,0.09442]
[1641227526571,0.14043567,46410.0,46404.0,0.321247]
[1641227526770,0.0001,46410.0,46404.0,0.321247]
[1641227527469,0.0001,46410.0,46409.0,0.001]
[1641227527969,0.0001,46410.0,46409.0,0.323922]
[1641227528473,0.11225994,46410.0,46409.0,0.323922]
[1641227528671,0.11225994,46410.0,46409.0,0.322922]
[1641227528870,0.11225994,46410.0,46409.0,0.185]
[1641227529271,0.11225994,46410.0,46409.0,0.509169]
[1641227529673,0.11225994,46410.0,46409.0,0.510169]
[1641227530170,0.11225994,46410.0,46409.0,0.325169]
[1641227530577,1.44875296,46421.0,46409.0,1.197089]
[1641227530773,0.3226,46429.0,46420.0,0.20154057]
[1641227530973,0.2796,46429.0,46420.0,0.08816057]
[1641227531173,0.3446,46437.0,46421.0,0.39207799]
[1641227531373,0.18,46435.0,46424.0,0.12]
[1641227531575,0.04154177,46439.0,46424.0,0.12]
[1641227531774,0.02,46439.0,46425.0,0.34107592]
[1641227531971,0.02,46439.0,46429.0,0.12]
[1641227532171,0.02,46439.0,46429.0,0.30320964]
[1641227532371,0.18,46435.0,46429.0,0.60170834]
[1641227532583,0.75109642,46430.0,46429.0,0.14033567]
[1641227532772,0.75109642,46430.0,46429.0,0.33033567]
[1641227533072,0.0001,46430.0,46429.0,0.33033567]
[1641227533271,0.28612239,46430.0,46429.0,0.19]
[1641227533475,0.30766809,46430.0,46416.0,0.60851307]
[1641227533671,0.18,46421.0,46416.0,0.60851307]
[1641227534074,0.18,46417.0,46412.0,0.60851307]
[1641227534272,0.09353,46417.0,46414.0,0.14033567]
[1641227534872,0.09353,46417.0,46415.0,0.321098]
[1641227535273,0.09353,46417.0,46414.0,0.50433567]
[1641227535473,0.14033567,46424.0,46416.0,0.001]
[1641227535674,0.14033567,46424.0,46414.0,0.44433567]
[1641227535872,0.14033567,46424.0,46417.0,0.324943]
[1641227536274,0.14033567,46424.0,46415.0,0.321337]
[1641227536475,0.26033567,46424.0,46414.0,0.14033567]
[1641227536676,0.14033567,46424.0,46418.0,0.32457]
[1641227536877,0.32133567,46424.0,46416.0,0.12]
[1641227537076,0.32133567,46424.0,46417.0,0.000272]
[1641227537579,0.181,46424.0,46421.0,0.26027773]
[1641227537778,0.181,46424.0,46423.0,0.001]
[1641227538081,0.181,46424.0,46423.0,0.000393]
[1641227538278,0.14033567,46429.0,46423.0,0.000393]
[1641227538279,0.14033567,46429.0,46423.0,0.14172867]
[1641227538479,0.14033567,46429.0,46423.0,0.14033567]
[1641227538680,0.34188188,46429.0,46423.0,0.14033567]
[1641227538879,0.30833567,46429.0,46423.0,0.30133567]
[1641227540090,0.14033567,46429.0,46424.0,0.324699]
[1641227540791,0.32933567,46429.0,46424.0,0.169]
[1641227541592,0.32933567,46429.0,46425.0,0.323348]
[1641227541792,0.32933567,46429.0,46424.0,0.169]
[1641227542194,0.14033567,46429.0,46420.0,0.24001077]
[1641227542592,0.14033567,46429.0,46425.0,0.323464]
[1641227542795,0.14033567,46429.0,46421.0,0.3208]
[1641227542993,0.14033567,46429.0,46420.0,0.42701077]
[1641227543594,0.14033567,46429.0,46421.0,0.32375]
[1641227544193,0.14033567,46429.0,46421.0,0.56799683]
[1641227544794,0.14033567,46429.0,46421.0,0.74499683]
[1641227544995,0.32133567,46429.0,46421.0,0.74499683]
[1641227546297,0.14033567,46429.0,46421.0,0.56799683]
[1641227546695,0.14033567,46429.0,46426.0,0.29679014]
[1641227546896,0.31633567,46429.0,46426.0,0.29679014]
[1641227547195,0.31633567,46429.0,46427.0,0.324732]
[1641227547594,0.31633567,46429.0,46428.0,0.001]
[1641227547995,0.31633567,46429.0,46428.0,0.321029]
[1641227548395,0.31633567,46429.0,46427.0,0.323905]
[1641227548595,0.009794,46437.0,46431.0,0.07556584]
[1641227548799,0.12,46436.0,46431.0,0.07556584]
[1641227548996,0.009794,46437.0,46432.0,0.002549]
[1641227549396,0.12,46436.0,46428.0,0.001971]
[1641227549596,0.9667003,46438.0,46428.0,0.121971]
[1641227549597,0.14033567,46438.0,46428.0,0.121971]
[1641227549996,0.02,46439.0,46428.0,0.121971]
[1641227550199,0.02,46439.0,46434.0,0.14033567]
[1641227550402,0.02,46439.0,46434.0,0.21592567]
[1641227550597,0.02,46439.0,46435.0,0.323228]
[1641227551405,0.09638182,46436.0,46435.0,0.323228]
[1641227551604,0.82636463,46442.0,46436.0,0.51683744]
[1641227551799,0.82636463,46442.0,46438.0,0.12]
[1641227551998,0.82636463,46442.0,46441.0,0.001]
[1641227552197,0.82636463,46442.0,46441.0,0.14033567]
[1641227552398,0.82636463,46442.0,46441.0,0.45868067]
[1641227552599,0.82636463,46442.0,46441.0,0.14033567]
[1641227552997,0.82636463,46442.0,46441.0,0.32433567]
[1641227553198,0.18,46449.0,46441.0,0.32433567]
[1641227553398,0.82636463,46451.0,46441.0,0.32433567]
[1641227553798,1.00636463,46451.0,46441.0,0.32433567]
[1641227554000,0.82636463,46451.0,46442.0,0.320902]
[1641227554199,1.00636463,46451.0,46442.0,0.320902]
[1641227554399,0.18,46451.0,46446.0,0.14033567]
[1641227554601,0.18,46447.0,46446.0,0.14033567]
[1641227554800,0.25385,46447.0,46441.0,0.14033567]
[1641227555001,0.25385,46447.0,46446.0,0.179]
[1641227555600,0.07385,46447.0,46446.0,0.179]
[1641227555806,0.07385,46447.0,46430.0,0.60851307]
[1641227555807,0.20153868,46447.0,46430.0,0.60851307]
[1641227556002,0.18,46431.0,46428.0,0.64091307]
[1641227556202,0.28349534,46431.0,46429.0,0.14033567]
[1641227557005,0.47949534,46431.0,46429.0,0.14033567]
[1641227558506,0.41949534,46431.0,46429.0,0.14033567]
[1641227558707,0.22349534,46431.0,46429.0,0.14033567]
[1641227558906,0.29749534,46431.0,46429.0,0.14033567]
[1641227559109,0.35749534,46431.0,46429.0,0.14033567]
[1641227559309,0.27595,46431.0,46429.0,0.14033567]
[1641227559508,0.194,46431.0,46430.0,0.001]
[1641227559710,0.194,46431.0,46430.0,0.322247]
[1641227560210,1.6641033,46439.0,46430.0,0.322247]
[1641227560409,0.02154079,46441.0,46434.0,0.14033567]
[1641227560809,0.02154079,46441.0,46435.0,0.320888]
[1641227561009,0.21254079,46441.0,46435.0,0.320888]
[1641227561210,0.191,46441.0,46435.0,0.320888]
[1641227562213,0.14033567,46444.0,46440.0,0.001]
[1641227562412,1.6641033,46446.0,46440.0,0.07894]
[1641227562616,1.6641033,46446.0,46441.0,0.32198]
[1641227562813,1.6641033,46446.0,46441.0,0.3435127]
[1641227563112,1.6641033,46446.0,46441.0,0.32198]
[1641227563113,0.00143443,46442.0,46441.0,0.32198]
[1641227563715,0.18,46445.0,46440.0,0.177]
[1641227564116,0.18,46441.0,46440.0,0.177]
[1641227564313,0.02154043,46442.0,46440.0,0.14033567]
[1641227564513,0.02153956,46444.0,46440.0,0.14033567]
[1641227564913,0.187,46442.0,46440.0,0.14033567]